bitfinex/quotes_BTCUSD_20241111
["timestamp","ask_amount","ask_price","bid_price","bid_amount"]
[1731313654266,0.246589,81107.0,81092.0,0.246633]
[1731313654469,0.123299,81104.0,81093.0,0.12594221]
[1731313654682,0.123299,81104.0,81094.0,0.246627]
[1731313654901,0.18438505,81105.0,81091.0,0.12328556]
[1731313655042,0.123301,81103.0,81094.0,0.123312]
[1731313655244,0.123301,81103.0,81092.0,0.169944]
[1731313655459,0.123301,81103.0,81094.0,0.123313]
[1731313655669,0.123301,81103.0,81091.0,0.09040493]
[1731313655871,0.123301,81103.0,81095.0,0.123312]
[1731313656296,0.123301,81103.0,81094.0,0.123313]
[1731313656465,0.123301,81103.0,81092.0,0.246632]
[1731313656684,0.123309,81097.0,81092.0,0.12328556]
[1731313656879,0.123306,81099.0,81092.0,0.12328556]
[1731313657085,0.18438505,81105.0,81092.0,0.14660056]
[1731313657499,0.30768305,81105.0,81090.0,0.06332381]
[1731313657669,0.30768305,81105.0,81089.0,0.41851248]
[1731313657670,0.30768305,81105.0,81089.0,0.09518948]
[1731313657876,0.18438505,81105.0,81089.0,0.09518948]
[1731313658080,0.18438505,81105.0,81086.0,0.023]
[1731313658313,0.18438505,81105.0,81097.0,0.123308]
[1731313658490,0.18438505,81105.0,81087.0,0.41852048]
[1731313658642,0.18438505,81105.0,81088.0,0.023]
[1731313658845,0.18438505,81105.0,81087.0,0.41852048]
[1731313659049,0.30768205,81105.0,81088.0,0.023]
[1731313659255,0.18438505,81105.0,81088.0,0.023]
[1731313659637,0.18438505,81105.0,81090.0,0.493278]
[1731313659839,0.30768305,81105.0,81096.0,0.123309]
[1731313660041,0.30768305,81105.0,81088.0,0.1]
[1731313660243,0.30768305,81105.0,81095.0,0.123311]
[1731313660455,0.1233,81103.0,81089.0,0.246642]
[1731313660690,0.1233,81103.0,81095.0,0.123311]
[1731313660905,0.18438505,81105.0,81097.0,0.123308]
[1731313661110,0.123299,81104.0,81089.0,0.02494654]
[1731313661348,0.18438505,81105.0,81089.0,0.02494654]
[1731313661349,0.1233,81103.0,81094.0,0.123312]
[1731313661549,0.1233,81103.0,81094.0,0.192913]
[1731313661763,0.12197516,81103.0,81094.0,0.0696]
[1731313661963,0.123304,81100.0,81092.0,0.123315]
[1731313662208,0.123305,81100.0,81091.0,0.09519048]
[1731313662582,0.246596,81104.0,81090.0,0.06706296]
[1731313662785,0.43097905,81105.0,81089.0,0.12494654]
[1731313662989,0.123304,81101.0,81080.0,0.43105405]
[1731313663223,0.43097905,81105.0,81080.0,0.43105405]
[1731313663224,0.246596,81104.0,81082.0,0.04641975]
[1731313663389,0.123304,81100.0,81091.0,0.17187248]
[1731313663575,0.18438505,81105.0,81092.0,0.06296202]
[1731313663770,0.18438505,81105.0,81092.0,0.15812006]
[1731313663981,0.30768305,81105.0,81092.0,0.15812006]
[1731313664176,0.30768305,81105.0,81082.0,0.04641975]
[1731313664177,0.123299,81104.0,81083.0,0.023]
[1731313664420,0.18438505,81105.0,81097.0,0.17187248]
[1731313664613,0.123298,81104.0,81082.0,0.02677783]
[1731313664820,0.1233,81103.0,81095.0,0.17187248]
[1731313665020,0.43097905,81105.0,81095.0,0.17187248]
[1731313665229,0.43097905,81105.0,81082.0,0.1]
[1731313665423,0.123299,81104.0,81096.0,0.123309]
[1731313665650,0.123299,81104.0,81095.0,0.09518148]
[1731313665873,0.123299,81104.0,81096.0,0.24659456]
[1731313666083,0.18438505,81105.0,81084.0,0.295964]
[1731313666224,0.2466,81103.0,81085.0,0.30540504]
[1731313666422,0.18438505,81105.0,81085.0,0.30540504]
[1731313666423,0.295803,81102.0,81089.0,0.02440624]
[1731313666648,0.295803,81102.0,81080.0,0.04931]
[1731313666649,0.493218,81100.0,81080.0,0.04931]
[1731313666866,0.246612,81099.0,81080.0,0.04931]
[1731313667125,0.123314,81094.0,81072.0,0.023]
[1731313667327,0.123314,81094.0,81072.0,0.049311]
[1731313667328,0.246627,81094.0,81072.0,0.049311]
[1731313667724,0.123318,81092.0,81086.0,0.02446538]
[1731313667936,0.123318,81092.0,81071.0,0.13383918]
[1731313668082,0.123318,81092.0,81071.0,0.05239319]
[1731313668309,0.30769705,81095.0,81054.0,0.17187248]
[1731313668519,0.30769705,81095.0,81072.0,0.17187248]
[1731313669102,0.18438505,81095.0,81072.0,0.17187248]
[1731313669388,0.18438505,81095.0,81073.0,0.1]
[1731313669539,0.18438505,81095.0,81072.0,0.07187248]
[1731313669748,0.18438505,81095.0,81072.0,0.19826179]
[1731313669943,0.18438505,81095.0,81085.0,0.0250139]
[1731313670398,0.18438505,81095.0,81068.0,0.02296137]
[1731313670693,0.18438505,81095.0,81072.0,0.15625753]
[1731313670834,0.18438505,81095.0,81073.0,0.17187248]
[1731313671045,0.18438505,81095.0,81068.0,0.02608625]
[1731313671252,0.18438505,81095.0,81072.0,0.17187248]
[1731313671493,0.18438505,81095.0,81073.0,0.1]
[1731313671700,0.18438505,81095.0,81072.0,0.12328556]
[1731313671859,0.18438505,81095.0,81073.0,0.12328556]
[1731313672061,0.18438505,81095.0,81063.0,0.1084139]
[1731313672489,0.18438505,81086.0,81063.0,0.18438505]
[1731313672691,0.18438505,81086.0,81085.0,0.02521596]
[1731313672891,0.18430474,81086.0,81085.0,0.02521596]
[1731313673116,0.18438505,81095.0,81063.0,0.00960101]
[1731313673426,0.18438505,81085.0,81063.0,0.023]
[1731313673624,0.18438505,81085.0,81064.0,0.1]
[1731313673869,0.18438505,81085.0,81064.0,0.04628556]
[1731313674037,0.18438505,81085.0,81062.0,0.04244747]
[1731313674682,0.18438505,81085.0,81052.0,0.05186843]
[1731313674911,0.18438505,81085.0,81070.0,0.11278]
[1731313675120,0.18438505,81076.0,81070.0,0.11278]
[1731313675304,0.18438505,81085.0,81084.0,0.123328]
[1731313675519,0.18438505,81085.0,81070.0,0.036108]
[1731313675630,0.18438505,81085.0,81084.0,0.12328556]
[1731313675832,0.18438505,81085.0,81071.0,0.1]
[1731313676237,0.18438505,81095.0,81077.0,0.11278]
[1731313676490,0.18438505,81086.0,81078.0,0.12594221]
[1731313676697,0.18438505,81095.0,81078.0,0.24922777]
[1731313676902,0.18438505,81095.0,81078.0,0.07328005]
[1731313677811,0.18438505,81095.0,81079.0,0.36998]
[1731313678654,0.30769805,81095.0,81079.0,0.36998]
[1731313678843,0.18438505,81095.0,81081.0,0.02432087]
[1731313679034,0.1255,81094.0,81079.0,0.19430087]
[1731313679391,0.1255,81094.0,81080.0,0.02521288]
[1731313679590,0.1255,81094.0,81079.0,0.01951375]
[1731313679822,0.1255,81094.0,81079.0,0.09283375]
[1731313680019,0.1255,81094.0,81091.0,0.123317]
[1731313680243,0.1255,81094.0,81091.0,0.196637]
[1731313680597,0.1255,81094.0,81079.0,0.0191733]
[1731313680804,0.1255,81094.0,81064.0,0.0319533]
[1731313681018,0.1255,81094.0,81071.0,0.18438505]
[1731313681225,0.1255,81094.0,81080.0,0.02515128]
[1731313681430,0.1255,81094.0,81065.0,0.19566808]
[1731313681633,0.1255,81094.0,81064.0,0.00306967]
[1731313681634,0.1255,81094.0,81081.0,0.37]
[1731313682055,0.1255,81094.0,81082.0,0.17001]
[1731313682491,0.1255,81094.0,81077.0,0.05533807]
[1731313682712,0.18438505,81085.0,81082.0,0.12324]
[1731313682954,0.17187956,81078.0,81075.0,0.05533903]
[1731313683167,0.1304,81077.0,81071.0,0.000843]
[1731313683377,0.1304,81077.0,81052.0,0.0487454]
[1731313683378,0.17187956,81071.0,81068.0,0.123352]
[1731313683589,0.17187956,81071.0,81070.0,0.12335]
[1731313683801,0.17187956,81071.0,81052.0,0.0487454]
[1731313683802,0.17187956,81071.0,81066.0,0.246711]
[1731313684030,0.17187956,81071.0,81070.0,0.12335]
[1731313684260,0.17187956,81071.0,81066.0,0.246711]
[1731313684481,0.17187956,81071.0,81069.0,0.12335]
[1731313684702,0.17187956,81071.0,81052.0,0.05179726]
[1731313684927,0.17187956,81071.0,81070.0,0.12335]
[1731313685159,0.17187956,81071.0,81070.0,0.12328556]
[1731313685375,0.17187956,81071.0,81053.0,0.37009]
[1731313685376,0.17187956,81071.0,81053.0,0.36616599]
[1731313685585,0.1304,81077.0,81054.0,0.1]
[1731313685809,0.18438505,81073.0,81056.0,0.1]
[1731313686047,0.18438505,81073.0,81072.0,0.123347]
[1731313686567,0.1304,81077.0,81061.0,0.1]
[1731313686773,0.1304,81077.0,81076.0,0.123341]
[1731313687018,0.1304,81077.0,81073.0,0.24669]
[1731313687246,0.1304,81077.0,81068.0,0.246705]
[1731313687247,0.1304,81077.0,81076.0,0.123341]
[1731313687442,0.1304,81077.0,81069.0,0.246703]
[1731313687882,0.1304,81077.0,81069.0,0.36998856]
[1731313688082,0.1304,81077.0,81074.0,0.123343]
[1731313688360,0.1304,81077.0,81074.0,0.24662856]
[1731313688579,0.1304,81077.0,81074.0,0.12328556]
[1731313688580,0.123342,81075.0,81074.0,0.12328556]
[1731313688781,0.1304,81077.0,81062.0,0.37712469]
[1731313689050,0.1304,81077.0,81075.0,0.123341]
[1731313689221,0.1304,81077.0,81063.0,0.246721]
[1731313689424,0.1304,81077.0,81074.0,0.123343]
[1731313689621,0.1304,81077.0,81064.0,0.297343]
[1731313689883,0.1304,81077.0,81072.0,0.123346]
[1731313690098,0.1304,81077.0,81064.0,0.220689]
[1731313690315,0.0793,81083.0,81073.0,0.17187956]
[1731313690528,0.1246,81099.0,81076.0,0.17187956]
[1731313690735,0.0793,81099.0,81089.0,0.17187956]
[1731313690945,0.0793,81099.0,81077.0,0.12594221]
[1731313690946,0.0453,81106.0,81086.0,0.17187956]
[1731313691147,0.1242,81106.0,81086.0,0.17187956]
[1731313691356,0.248249,81115.0,81086.0,0.17187956]
[1731313691357,0.001686,81115.0,81093.0,0.17187956]
[1731313691562,0.078786,81115.0,81093.0,0.19197956]
[1731313691797,0.078786,81115.0,81094.0,0.17187956]
[1731313691967,0.078786,81115.0,81094.0,0.69905956]
[1731313692112,0.078786,81115.0,81094.0,0.49905956]
[1731313692534,0.202068,81115.0,81094.0,0.29905956]
[1731313692730,0.30766805,81114.0,81094.0,0.09905956]
[1731313693244,0.30766805,81114.0,81082.0,0.1]
[1731313693461,0.30766805,81114.0,81090.0,0.1]
[1731313693684,0.12594221,81113.0,81084.0,0.1]
[1731313693891,0.12594221,81113.0,81091.0,0.36995]
[1731313694095,0.12594221,81113.0,81091.0,0.16995]
[1731313694491,0.12594221,81113.0,81087.0,0.15433505]
[1731313694892,0.12594221,81113.0,81085.0,0.08093726]
[1731313695088,0.123286,81112.0,81085.0,0.08093726]
[1731313695297,0.12594221,81111.0,81086.0,0.36992]
[1731313695540,0.12594221,81111.0,81086.0,0.16992]
[1731313695746,0.18438505,81105.0,81087.0,0.1]
[1731313695973,0.18438505,81105.0,81086.0,0.06992]
[1731313696212,0.18438505,81096.0,81086.0,0.06992]
[1731313696483,0.18438505,81105.0,81085.0,0.00310724]
[1731313696484,0.0766,81097.0,81085.0,0.00310724]
[1731313696732,0.18438505,81094.0,81069.0,0.09206758]
[1731313696928,0.18438505,81094.0,81073.0,0.00304288]
[1731313696929,0.29782177,81093.0,81073.0,0.00304288]
[1731313697131,0.29782177,81093.0,81083.0,0.246658]
[1731313697280,0.29782177,81093.0,81074.0,0.36999]
[1731313697501,0.0473,81086.0,81074.0,0.36999]
[1731313697711,0.12594221,81085.0,81074.0,0.293324]
[1731313697890,0.24926921,81085.0,81074.0,0.293324]
[1731313698073,0.12594221,81085.0,81074.0,0.093324]
[1731313698298,0.12594221,81085.0,81082.0,0.12333]
[1731313698494,0.31032726,81085.0,81077.0,0.246679]
[1731313698786,0.12594221,81085.0,81074.0,0.093324]
[1731313698978,0.12594221,81085.0,81079.0,0.123336]
[1731313699196,0.24926921,81085.0,81074.0,0.093324]
[1731313699428,0.123329,81084.0,81077.0,0.123338]
[1731313699623,0.12594221,81083.0,81077.0,0.123338]
[1731313699756,0.24927221,81083.0,81077.0,0.123338]
[1731313700364,0.12594221,81083.0,81078.0,0.123337]
[1731313700559,0.12594221,81083.0,81079.0,0.123336]
[1731313700766,0.12594221,81083.0,81076.0,0.246682]
[1731313701016,0.12594221,81083.0,81074.0,0.093324]
[1731313701017,0.12594221,81083.0,81080.0,0.123334]
[1731313701821,0.12594221,81083.0,81080.0,0.12309]
[1731313702180,0.12594221,81083.0,81074.0,0.093324]
[1731313702378,0.12594221,81083.0,81082.0,0.123331]
[1731313702598,0.12594221,81083.0,81080.0,0.123333]
[1731313702985,0.170626,81086.0,81074.0,0.093324]
[1731313702986,0.0473,81086.0,81082.0,0.123331]
[1731313703185,0.12594221,81085.0,81083.0,0.12333]
[1731313703423,0.12594221,81085.0,81075.0,0.123342]
[1731313703670,0.12594221,81085.0,81083.0,0.123329]
[1731313703803,0.12594221,81085.0,81074.0,0.016653]
[1731313705009,0.12594221,81085.0,81064.0,0.14088617]
[1731313705208,0.18438505,81083.0,81057.0,0.07367962]
[1731313705408,0.18438505,81083.0,81061.0,0.05910675]
[1731313706443,0.18438505,81083.0,81052.0,0.09209611]
[1731313706444,0.18438505,81083.0,81057.0,0.03278637]
[1731313706660,0.18438505,81083.0,81058.0,0.12594221]
[1731313706849,0.0809,81082.0,81058.0,0.12594221]
[1731313707594,0.12594221,81081.0,81053.0,0.285968]
[1731313707725,0.18438505,81074.0,81054.0,0.12594221]
[1731313708257,0.18438505,81074.0,81053.0,0.10158295]
[1731313708462,0.18438505,81065.0,81064.0,0.000843]
[1731313708662,0.12594221,81073.0,81053.0,0.00242595]
[1731313708866,0.12594221,81073.0,81053.0,0.17187956]
[1731313709243,0.12594221,81073.0,81052.0,0.06397567]
[1731313709446,0.12594221,81073.0,81057.0,0.17187956]
[1731313709844,0.12594221,81073.0,81051.0,0.0002]
[1731313710048,0.0499,81072.0,81055.0,0.17187956]
[1731313710256,0.17584221,81072.0,81050.0,0.17207956]
[1731313710523,0.17584221,81072.0,81056.0,0.37008]
[1731313710657,0.17584221,81072.0,81057.0,0.1]
[1731313710866,0.17584221,81072.0,81059.0,0.1]
[1731313711112,0.17584221,81072.0,81058.0,0.27011]
[1731313711113,0.0777,81071.0,81058.0,0.27011]
[1731313711850,0.18438505,81064.0,81058.0,0.27011]
[1731313712058,0.12594221,81070.0,81058.0,0.27011]
[1731313712324,0.12594221,81070.0,81058.0,0.07011]
[1731313712920,0.12594221,81070.0,81050.0,0.04604377]
[1731313713491,0.12594221,81070.0,81040.0,0.1]
[1731313713731,0.12594221,81070.0,81044.0,0.1]
[1731313713905,0.18438505,81063.0,81043.0,0.07187956]
[1731313714110,0.18438505,81063.0,81038.0,0.01287167]
[1731313714111,0.18438505,81063.0,81045.0,0.37016]
[1731313714345,0.18438505,81063.0,81049.0,0.07368234]
[1731313714533,0.18438505,81063.0,81050.0,0.37014]
[1731313714816,0.18438505,81063.0,81050.0,0.37016]
[1731313715019,0.18438505,81063.0,81058.0,0.03684117]
[1731313715217,0.12594221,81070.0,81050.0,0.20700117]
[1731313715487,0.12594221,81070.0,81053.0,0.05526003]
[1731313715980,0.12594221,81070.0,81054.0,0.6596]
[1731313716185,0.12594221,81070.0,81054.0,0.4596]
[1731313716416,0.0777,81071.0,81054.0,0.51486003]
[1731313716528,0.0777,81071.0,81056.0,0.05526003]
[1731313716736,0.0777,81071.0,81057.0,0.1]
[1731313716972,0.0777,81071.0,81057.0,0.85959]
[1731313718074,0.0777,81071.0,81057.0,0.65959]
[1731313718797,0.0777,81071.0,81058.0,0.1]
[1731313719178,0.0777,81071.0,81059.0,1.0596]
[1731313719818,0.0777,81071.0,81060.0,0.1]
[1731313720158,0.0777,81071.0,81061.0,1.0596]
[1731313720361,0.12762821,81070.0,81061.0,1.0596]
[1731313724688,0.12762821,81070.0,81062.0,0.1]
[1731313724880,0.12762821,81070.0,81063.0,1.0596]
[1731313727989,0.12762821,81070.0,81069.0,0.123351]
[1731313728396,0.001686,81070.0,81069.0,0.123351]
[1731313731187,0.001686,81070.0,81069.0,0.12722851]
[1731313732492,0.12762821,81070.0,81069.0,0.12722851]
[1731313734272,0.12766821,81070.0,81069.0,0.12722851]
[1731313745224,0.12766821,81070.0,81069.0,0.18261091]
[1731313745821,0.001726,81070.0,81069.0,0.18261091]
[1731313745998,0.0777,81071.0,81070.0,0.12335]
[1731313746408,0.0777,81071.0,81070.0,1.25669321]
[1731313747667,0.0777,81071.0,81070.0,1.18285]
[1731313747867,0.0777,81071.0,81070.0,1.25671146]
[1731313748433,0.0814,81076.0,81070.0,1.13336146]
[1731313748641,0.0814,81076.0,81075.0,0.123342]
[1731313748845,0.0814,81076.0,81075.0,1.182842]
[1731313749493,0.0814,81076.0,81075.0,1.23823909]
[1731313752646,0.0814,81076.0,81075.0,1.23824062]
[1731313755513,0.0814,81076.0,81075.0,1.23823777]
[1731313755949,0.0814,81076.0,81075.0,1.182842]
[1731313756132,0.0814,81076.0,81075.0,1.23823795]
[1731313756936,0.083086,81076.0,81075.0,1.23823795]
[1731313757724,0.083086,81076.0,81075.0,1.23823556]
[1731313759196,0.083086,81076.0,81075.0,1.182842]
[1731313760546,0.131686,81076.0,81075.0,1.182842]
[1731313768688,0.37048077,81076.0,81075.0,1.0595]
[1731313768934,0.60667433,81076.0,81075.0,1.0595]
[1731313769133,0.49382177,81076.0,81075.0,1.0595]
[1731313769555,0.37048077,81076.0,81075.0,1.0595]
[1731313770947,0.49382177,81076.0,81075.0,1.0595]
[1731313771987,0.60667433,81076.0,81075.0,1.0595]
[1731313772188,0.49382177,81076.0,81075.0,1.0595]
[1731313774614,0.49582177,81076.0,81075.0,1.0595]
[1731313775055,0.49382177,81076.0,81075.0,1.0595]
[1731313778706,0.37048077,81076.0,81075.0,1.0595]
[1731313779461,0.49382177,81076.0,81075.0,1.0595]
[1731313779663,0.37048077,81076.0,81075.0,1.0595]
[1731313781041,0.49382177,81076.0,81075.0,1.0595]
[1731313781842,0.25762821,81076.0,81075.0,1.182842]
[1731313786391,0.25762821,81076.0,81075.0,1.182842]
[1731313787461,0.25142821,81076.0,81075.0,1.182842]
[1731313788482,0.12762821,81076.0,81075.0,1.182842]
[1731313788692,0.001686,81076.0,81075.0,1.182842]
[1731313789784,0.001686,81076.0,81075.0,1.18662828]
[1731313792293,0.17352821,81076.0,81075.0,1.18662828]
[1731313802826,0.25242821,81076.0,81075.0,1.18662828]
[1731313803661,0.25242821,81076.0,81075.0,1.18747128]
[1731313805375,0.126486,81076.0,81075.0,1.18747128]
[1731313806840,0.25242821,81076.0,81075.0,1.18747128]
[1731313812421,0.25242821,81076.0,81075.0,1.183685]
[1731313812781,0.37576921,81076.0,81075.0,1.060343]
[1731313813505,0.49362177,81076.0,81075.0,1.060343]
[1731313813715,0.49562177,81076.0,81075.0,0.932243]
[1731313813924,0.252448,81071.0,81070.0,0.000843]
[1731313814122,0.49124277,81071.0,81070.0,0.000843]
[1731313814749,0.55043152,81071.0,81070.0,0.000843]
[1731313815541,0.57543152,81071.0,81070.0,0.000843]
[1731313816202,0.57343152,81071.0,81070.0,0.000843]
[1731313817850,0.57543152,81071.0,81070.0,0.000843]
[1731313819202,0.57343152,81071.0,81070.0,0.000843]
[1731313820385,0.57543152,81071.0,81070.0,0.000843]
[1731313820796,0.57343152,81071.0,81070.0,0.000843]
[1731313821209,0.57543152,81071.0,81070.0,0.000843]
[1731313826314,0.68043152,81071.0,81070.0,0.000843]
[1731313827075,0.68543152,81071.0,81070.0,0.000843]
[1731313827305,0.68043152,81071.0,81070.0,0.000843]
[1731313827500,0.68543152,81071.0,81070.0,0.000843]
[1731313829409,0.51339021,81071.0,81070.0,0.000843]
[1731313829607,0.67543152,81071.0,81070.0,0.000843]
[1731313832515,0.68043152,81071.0,81070.0,0.000843]
[1731313833101,0.280968,81058.0,81057.0,0.000843]
[1731313833346,0.58403593,81058.0,81057.0,0.000843]
[1731313833557,0.58095152,81058.0,81057.0,0.000843]
[1731313833756,0.75299283,81058.0,81057.0,0.000843]
[1731313833954,0.68095152,81058.0,81057.0,0.000843]
[1731313834361,0.85799283,81058.0,81057.0,0.000843]
[1731313834811,0.68595152,81058.0,81057.0,0.000843]
[1731313835529,0.85799283,81058.0,81057.0,0.000843]
[1731313836062,0.85599283,81058.0,81057.0,0.000843]
[1731313836268,0.98393504,81058.0,81057.0,0.000843]
[1731313836438,0.55912031,81051.0,81050.0,0.000843]
[1731313836672,0.68506252,81051.0,81050.0,0.000843]
[1731313837767,0.51302121,81051.0,81050.0,0.000843]
[1731313844601,0.68506252,81051.0,81050.0,0.000843]
[1731313847397,0.51302121,81051.0,81050.0,0.000843]
[1731313848997,0.50802121,81051.0,81050.0,0.000843]
[1731313849400,0.51302121,81051.0,81050.0,0.000843]
[1731313851031,0.50602121,81051.0,81050.0,0.000843]
[1731313852001,0.50802121,81051.0,81050.0,0.000843]
[1731313853606,0.45772121,81051.0,81050.0,0.000843]
[1731313854968,0.57267584,81051.0,81050.0,0.000843]
[1731313862617,0.61897584,81051.0,81050.0,0.000843]
[1731313864712,0.51102121,81051.0,81050.0,0.000843]
[1731313868325,0.62397584,81051.0,81050.0,0.000843]
[1731313872005,0.61897584,81051.0,81050.0,0.000843]
[1731313872206,0.61697584,81051.0,81050.0,0.000843]
[1731313872419,0.35432121,81051.0,81050.0,0.000843]
[1731313873733,0.25432121,81051.0,81050.0,0.000843]
[1731313877082,0.13094221,81051.0,81050.0,0.078343]
[1731313877267,0.13094221,81051.0,81050.0,0.201723]
[1731313878122,0.12594221,81051.0,81050.0,0.201723]
[1731313878333,0.13094221,81051.0,81050.0,0.201723]
[1731313878534,0.12594221,81051.0,81050.0,0.201723]
[1731313878753,0.12594221,81051.0,81050.0,0.250723]
[1731313880021,0.12594221,81051.0,81050.0,0.124223]
[1731313880260,0.12594221,81051.0,81050.0,0.000843]
[1731313880957,0.12594221,81051.0,81050.0,0.124223]
[1731313882318,0.12594221,81051.0,81050.0,0.247923]
[1731313883707,0.001686,81057.0,81056.0,0.123371]
[1731313883956,0.12762821,81057.0,81056.0,0.247071]
[1731313889659,0.12762821,81057.0,81056.0,0.194071]
[1731313890475,0.12762821,81057.0,81050.0,0.0046297]
[1731313890625,0.12594221,81053.0,81050.0,0.0046297]
[1731313893664,0.123379,81051.0,81050.0,0.000843]
[1731313893949,0.12594221,81051.0,81050.0,0.000843]
[1731313895623,0.099157,81050.0,81046.0,0.00385203]
[1731313895837,0.12594221,81049.0,81041.0,0.001396]
[1731313896314,0.12594221,81049.0,81042.0,0.123391]
[1731313897254,0.12594221,81049.0,81041.0,0.0052288]
[1731313897673,0.12594221,81049.0,81041.0,0.1286218]
[1731313898101,0.12594221,81049.0,81041.0,0.0052288]
[1731313898517,0.005,81046.0,81041.0,0.0052288]
[1731313898728,0.12594221,81045.0,81041.0,0.0052288]
[1731313899356,0.005,81044.0,81041.0,0.001396]
[1731313899560,0.12594221,81043.0,81041.0,0.001396]
[1731313900356,0.128392,81042.0,81041.0,0.001396]
[1731313900532,0.25433421,81042.0,81041.0,0.001396]
[1731313901301,0.13094221,81042.0,81041.0,0.001396]
[1731313901724,0.25433421,81042.0,81041.0,0.001396]
[1731313902647,0.13094221,81042.0,81041.0,0.001396]
[1731313903915,0.25433421,81042.0,81041.0,0.001396]
[1731313904092,0.25741897,81042.0,81041.0,0.001396]
[1731313904699,0.25433421,81042.0,81041.0,0.001396]
[1731313904988,0.25741907,81042.0,81041.0,0.001396]
[1731313905554,0.25941907,81042.0,81041.0,0.001396]
[1731313905953,0.25741907,81042.0,81041.0,0.001396]
[1731313907488,0.42941744,81042.0,81041.0,0.001396]
[1731313907613,0.47513258,81042.0,81041.0,0.001396]
[1731313908401,0.47713258,81042.0,81041.0,0.001396]
[1731313909923,0.47513258,81042.0,81041.0,0.001396]
[1731313910783,0.47713258,81042.0,81041.0,0.001396]
[1731313912734,0.41810929,81042.0,81041.0,0.001396]
[1731313912935,0.41610929,81042.0,81041.0,0.001396]
[1731313913607,0.25433421,81042.0,81041.0,0.001396]
[1731313913811,0.13094221,81042.0,81041.0,0.001396]
[1731313914341,0.12594221,81042.0,81041.0,0.12479]
[1731313914585,0.12594221,81042.0,81041.0,0.12869776]
[1731313915555,0.099157,81050.0,81041.0,0.20979776]
[1731313915782,0.12594221,81042.0,81041.0,0.20979776]
[1731313916005,0.099157,81050.0,81049.0,0.123382]
[1731313916197,0.22509921,81050.0,81049.0,0.123382]
[1731313916403,0.005,81068.0,81041.0,0.18640376]
[1731313916605,0.141191,81070.0,81041.0,0.18640376]
[1731313916606,0.18938505,81067.0,81056.0,0.123371]
[1731313916810,0.00135853,81057.0,81056.0,0.123371]
[1731313918511,0.12730074,81057.0,81056.0,0.123371]
[1731313920698,0.12730074,81057.0,81056.0,0.12726452]
[1731313924640,0.12730074,81057.0,81056.0,0.123371]
[1731313927183,0.01784,81070.0,81069.0,0.123351]
[1731313927384,0.14378221,81070.0,81069.0,0.123351]
[1731313928832,0.001686,81075.0,81074.0,0.123344]
[1731313929056,0.12762821,81075.0,81074.0,0.123344]
[1731313929294,0.001686,81075.0,81074.0,0.123344]
[1731313934823,0.12762821,81075.0,81074.0,0.123344]
[1731313945173,0.12762821,81075.0,81074.0,0.11981447]
[1731313947642,0.12762821,81075.0,81074.0,0.11541447]
[1731313957730,0.12762821,81075.0,81074.0,0.11625647]
[1731313958505,0.001686,81076.0,81075.0,0.123342]
[1731313960155,0.005,81092.0,81091.0,0.123318]
[1731313960366,0.12594221,81092.0,81091.0,0.123318]
[1731313960583,0.005,81107.0,81104.0,0.123298]
[1731313961238,0.005,81107.0,81106.0,0.123295]
[1731313961437,0.13094221,81107.0,81106.0,0.123295]
[1731313965341,0.13094221,81107.0,81102.0,0.2466]
[1731313965463,0.0827,81096.0,81085.0,0.18438505]
[1731313965679,0.12594221,81095.0,81094.0,0.123313]
[1731313965877,0.12594221,81095.0,81091.0,0.246636]
[1731313965878,0.005,81092.0,81091.0,0.123318]
[1731313966098,0.13094221,81092.0,81091.0,0.123318]
[1731313966294,0.13094221,81092.0,81087.0,0.246646]
[1731313966295,0.005,81091.0,81090.0,0.123319]
[1731313966503,0.13094221,81091.0,81090.0,0.123319]
[1731313967388,0.005,81087.0,81086.0,0.123325]
[1731313967562,0.13094221,81087.0,81086.0,0.123325]
[1731313968335,0.005,81085.0,81084.0,0.123327]
[1731313968562,0.13094221,81085.0,81084.0,0.123327]
[1731313968763,0.13094221,81085.0,81082.0,0.123331]
[1731313968964,0.12594221,81084.0,81083.0,0.12333]
[1731313971407,0.12594221,81084.0,81080.0,0.123334]
[1731313971608,0.0030833,81083.0,81080.0,0.123334]
[1731313971809,0.0030833,81083.0,81076.0,0.246682]
[1731313971810,0.12594221,81082.0,81076.0,0.246682]
[1731313972015,0.12594221,81082.0,81080.0,0.123333]
[1731313972225,0.12594221,81082.0,81081.0,0.123333]
[1731313974205,0.12594221,81082.0,81077.0,0.246679]
[1731313974424,0.12594221,81082.0,81081.0,0.123333]
[1731313979567,0.13094221,81082.0,81076.0,0.00378565]
[1731313979765,0.13094221,81082.0,81080.0,0.123334]
[1731313979967,0.13094221,81082.0,81081.0,0.123333]
[1731313982281,0.13094221,81082.0,81081.0,0.124175]
[1731313989072,0.13094221,81082.0,81081.0,0.000842]
[1731313989274,0.13094221,81082.0,81081.0,0.124175]
[1731313990248,0.13094221,81082.0,81081.0,0.000842]
[1731313990446,0.26002596,81082.0,81081.0,0.000842]
[1731313990878,0.38335696,81082.0,81081.0,0.000842]
[1731313991087,0.38027321,81082.0,81081.0,0.000842]
[1731313991939,0.38527321,81082.0,81081.0,0.000842]
[1731313993207,0.38727321,81082.0,81081.0,0.000842]
[1731313997551,0.005,81071.0,81070.0,0.00047955]
[1731313997877,0.25737428,81071.0,81070.0,0.00047955]
[1731313998035,0.13402628,81071.0,81070.0,0.00047955]
[1731314001297,0.12594221,81071.0,81070.0,0.12382955]
[1731314001554,0.12594221,81071.0,81070.0,0.00047955]
[1731314001719,0.12594221,81071.0,81070.0,0.12382955]
[1731314003730,0.12594221,81071.0,81070.0,0.12768205]
[1731314005494,0.12594221,81071.0,81070.0,0.37438205]
[1731314008656,0.12594221,81071.0,81070.0,0.45268205]
[1731314009383,0.12594221,81071.0,81070.0,0.20598205]
[1731314010803,0.12594221,81071.0,81070.0,0.12768205]
[1731314012626,0.000871,81075.0,81074.0,0.123344]
[1731314012761,0.000871,81075.0,81074.0,0.33847918]
[1731314013617,0.001684,81093.0,81092.0,0.123316]
[1731314013829,0.12762621,81093.0,81092.0,0.123316]
[1731314014022,0.12762621,81093.0,81092.0,0.16084065]
[1731314014253,0.12762621,81093.0,81092.0,0.123316]
[1731314014590,0.12762621,81093.0,81092.0,0.16017526]
[1731314014967,0.12762621,81093.0,81092.0,0.16017534]
[1731314015165,0.12762621,81093.0,81092.0,0.123316]